Workbook

Sheet Лист1
B1: МКДОУ дс "Колосок" | K1: МКДОУдс "Колосок"
B2: I день ясли | K2: I день сад
B3: № рец | C3: Наименование блюда | E3: Химический состав | I3: Выход | K3: № рец | L3: Наименование блюда | N3: Химический состав | R3: Выход
E4: Б | F4: Ж | G4: У | H4: К | N4: Б | O4: Ж | P4: У | Q4: К
B5: I завтрак | K5: I завтрак
B6: 161 | C6: Суп молочный с крупой | E6: 3.95 | F6: 4.19 | G6: 16.92 | H6: 121.21 | I6: 150 | K6: 161 | L6: Суп молочный с крупой | N6: 4.6 | O6: 4.6 | P6: 19.9 | Q6: 140 | R6: 200
B7: 692 | C7: Кофейный напиток | E7: 0.09 | F7: 0.003 | G7: 9.21 | H7: 37.24 | I7: 150 | K7: 692 | L7: Кофейный напиток | N7: 0.114 | O7: 0.004 | P7: 11.45 | Q7: 46.26 | R7: 200
B8: 1 | C8: Бутерброд с маслом | E8: 0.88 | F8: 3.26 | G8: 5.82 | H8: 56.12 | I8: 12/4 | K8: 1 | L8: Бутерброд с маслом | N8: 1.2 | O8: 3.4 | P8: 7.7 | Q8: 66 | R8: 16/4
C9: Хлеб в/с пшеничный | E9: 0.84 | F9: 0.36 | G9: 5.76 | H9: 29.64 | I9: 12 | L9: Хлеб в/с пшеничный | N9: 1.6 | O9: 0.48 | P9: 6.88 | Q9: 38.24 | R9: 16
B10: Итого за завтрак: | E10: =SUM(E6:E9) -> 5.76 | F10: =SUM(F6:F9) -> 7.813 | G10: 37.71 | H10: 244.21 | K10: Итого за завтрак: | N10: =SUM(N6:N9) -> 7.514 | O10: =SUM(O6:O9) -> 8.484 | P10: 45.93 | Q10: 290.5
B11: II завтрак | K11: II завтрак
B12: Обед | K12: Обед
B13: 124 | C13: Щи из свежей капусты с картофелем | E13: 4.94 | F13: 3.64 | G13: 12.05 | H13: 100.643 | I13: 150 | K13: 124 | L13: Щи из свежей капусты с картофелем | N13: 5.3 | O13: 5 | P13: 13.5 | Q13: 119.7 | R13: 200
B14: 479 | C14: Макаронник с мясом кур | E14: 10.91 | F14: 3.99 | G14: 14.142 | H14: 140.9 | I14: 100 | K14: 479 | L14: Макаронник с мясом кур | N14: 13.23 | P14: 20.066 | Q14: 179 | R14: 120
C15: Икра кабачковая | E15: 0.28 | F15: 1.96 | G15: 1.96 | H15: 27.16 | I15: 28 | L15: Икра кабачковая | N15: 0.29 | O15: 1.44 | P15: 1.55 | Q15: 19.8 | R15: 36
B16: 639 | C16: Компот из сухофруктов | E16: 0.19 | F16: 0 | G16: 8.06 | H16: 32.22 | I16: 150 | K16: 639 | L16: Компот из сухофруктов | N16: 0.26 | O16: 0 | P16: 10.39 | Q16: 41.64 | R16: 200
C17: Хлеб белый | E17: 1.33 | F17: 0.57 | G17: 9.12 | H17: 46.93 | I17: 19 | L17: Хлеб белый | N17: 1.82 | O17: 0.78 | P17: 12.48 | Q17: 64.22 | R17: 26
C18: Хлеб ржаной | E18: 1.97 | F18: 0.38 | G18: 11.8 | H18: 58.49 | I18: 29 | L18: Хлеб ржаной | N18: 2.45 | O18: 0.47 | P18: 14.65 | Q18: 72.61 | R18: 36
B19: Итого за обед: | E19: =SUM(E13:E18) -> 19.62 | F19: =SUM(F13:F18) -> 10.54 | G19: 57.132 | H19: 406.343 | K19: Итого за обед: | N19: =SUM(N13:N18) -> 23.35 | O19: =SUM(O13:O18) -> 7.69 | P19: 72.636 | Q19: 496.97
B20: Уплотненный полдник | K20: Уплотненный полдник
B21: 394 | C21: Тефтеля рыбная | E21: 10.42 | F21: 3.7 | G21: 6.438 | H21: 100.64 | I21: 50 | K21: 394 | L21: Тефтеля рыбная | N21: 11.84 | O21: 3.68 | P21: 7.795 | Q21: 112.75 | R21: 60
B22: 534 | C22: Капуста тушеная | E22: 1.49 | F22: 1.47 | G22: 5.36 | H22: 58.573 | I22: 60 | K22: 534 | L22: Капуста тушеная | N22: 1.9 | O22: 3.5 | P22: 6.9 | Q22: 66.6 | R22: 70
C23: Хлеб пшеничный | E23: 1.6 | F23: 0.48 | G23: 6.88 | H23: 38.24 | I23: 16 | L23: Хлеб пшеничный | N23: 1.6 | O23: 0.48 | P23: 6.88 | Q23: 38.24 | R23: 16
B24: 685 | C24: Чай с сахаром | E24: 0.014 | F24: 0.04 | G24: 7.95 | H24: 32.67 | I24: 150 | K24: 685 | L24: Чай с сахаром | N24: 0.16 | O24: 0.004 | P24: 9.93 | Q24: 40.74 | R24: 200
B25: ВСЕГО: | E25: =SUM(E24) -> 0.014 | F25: =SUM(F24) -> 0.04 | G25: 7.95 | H25: 32.67 | K25: всего: | N25: =SUM(N21:N24) -> 15.5 | O25: =SUM(O21:O24) -> 7.664 | P25: 31.505 | Q25: 258.33
B26: ИТОГО ЗА 1 ДЕНЬ: | E26: =SUM(E6:E10,E13:E19,E21:E25) -> 64.298 | F26: =SUM(F6:F10,F13:F19,F21:F25) -> 42.436 | G26: 224.262 | H26: 1563.899 | K26: ИТОГО ЗА 1 ДЕНЬ: | N26: =SUM(N6:N10,N13:N19,N21:N25) -> 92.728 | O26: =SUM(O6:O10,O13:O19,O21:O25) -> 47.676 | P26: 300.142 | Q26: 2091.6
